Cogmind - Beta 11.1 @@@ ROGUE MODE // 2022.10.28 @ 00:46:55 Player: kawyua Result: Escaped! Performance ------------- Evolutions (9) 4500 Regions Visited (16) 3200 Robots Destroyed (94) 470 Value Destroyed (2940) 2940 Prototype IDs (15) 300 Alien Tech Used (0) 0 Bonus (6474) 6474 TOTAL SCORE: 17884 Bonus ------- High Alert Combat Kills 117 Entered DSFs 500 Met Warlord at Base 500 MAIN.C Attacked Warlord 500 Met Warlord at Research 2000 Win 3000 Friendly Fire -143 Cogmind --------- Core Integrity 308/1600 Matter 300/300 Energy 26/100 System Corruption 11% Temperature Cool (0) Movement Core (50) Location To Epsilon Eridani Parts ------- > --- POWER (3) -------- (None) > --- PROPULSION (8) --- (None) > --- UTILITY (12) ----- Machine Analyzer Ghost Barrier > --- WEAPON (2) ------- (None) > --- INVENTORY (5) ---- Advanced Cloaking Device Enhanced Nova Cannon Micro-nuke Launcher Enhanced Force Lance Peak State ------------ > --- POWER ------------ Light Fission Core Light Antimatter Reactor Mini Fusion Reactor > --- PROPULSION ------- Impulse Thruster Array Impulse Thruster Array Impulse Thruster Array Impulse Thruster Array > --- UTILITY ---------- Advanced Power Amplifier Machine Analyzer Spectral Analyzer Advanced Sensor Array Advanced Signal Interpreter Advanced Terrain Scanner Advanced Transmission Jammer Advanced Phase Shifter Advanced Cloaking Device Advanced Cloaking Device Advanced Cloaking Device Ghost Barrier > --- WEAPON ----------- Advanced Datajack Force Lance > --- INVENTORY -------- System Restoration Module Vortex Driver Micro-nuke Launcher [Rating: 186] Favorites ----------- Power Mini Fusion Reactor Engine Ion Engine Power Core Micro Fission Core Reactor Mini Fusion Reactor Propulsion Light Treads Treads Light Treads Leg Aluminum Leg Wheel Wheel Flight Unit Cooled VTOL Module Utility High-capacity Storage Unit Device Advanced Power Amplifier Storage High-capacity Storage Unit Processor Advanced Signal Interpreter Hackware Ghost Barrier Protection Medium Armor Plating Weapon Light Assault Rifle Energy Gun Small Laser Energy Cannon Advanced Plasma Cannon Ballistic Gun Light Assault Rifle Ballistic Cannon Battle Cannon Launcher Grenade Launcher Special Weapon Mining Laser Impact Weapon Hammer Slashing Weapon Katana Piercing Weapon Force Lance Special Melee Weapon Advanced Datajack Build | -11 -10 -10 -9 -8 -7 -6 -5 -4 -4 -4 -4 -3 -3 -3 -2 -1 ------- Run | Scr Mat Min Mat Mat Fac Fac Fac Fac Upp Upp War Pro Res DSF Res Acc Slots Evolved 18 | . . . 2 2 2 2 2 2 . . . . 2 . 2 2 Power 2 | . . . . . . 1 . . . . . . 1 . . . Propulsion 6 | . . . 1 1 . . 1 . . . . . 1 . . 2 Utility 10 | . . . 1 1 2 1 1 2 . . . . . . 2 . Weapon . | . . . . . . . . . . . . . . . . . Parts Attached 208 | 5 9 16 38 42 17 9 5 18 1 2 13 . 3 . 17 13 Power 30 | 1 1 . 1 7 2 1 2 2 . . 4 . . . 5 4 Engine 11 | 1 1 . 1 5 2 . 1 . . . . . . . . . Core 7 | . . . . 2 . 1 1 1 . . 1 . . . 1 . Reactor 12 | . . . . . . . . 1 . . 3 . . . 4 4 Propulsion 46 | 2 2 2 10 14 4 . 1 3 . 1 1 . 1 . 4 1 Treads 13 | . 2 . 8 3 . . . . . . . . . . . . Leg 7 | . . 2 1 4 . . . . . . . . . . . . Wheel 3 | 2 . . 1 . . . . . . . . . . . . . Hover . | . . . . . . . . . . . . . . . . . Flight 23 | . . . . 7 4 . 1 3 . 1 1 . 1 . 4 1 Utility 73 | 1 2 5 11 10 7 6 2 8 1 1 6 . 2 . 6 5 Device 42 | . . 3 3 5 2 3 2 8 1 1 3 . 2 . 4 5 Storage 4 | 1 2 . 1 . . . . . . . . . . . . . Processor 10 | . . . . 3 2 2 . . . . 1 . . . 2 . Hackware 4 | . . . . . 2 1 . . . . 1 . . . . . Protection 13 | . . 2 7 2 1 . . . . . 1 . . . . . Artifact . | . . . . . . . . . . . . . . . . . Weapon 59 | 1 4 9 16 11 4 2 . 5 . . 2 . . . 2 3 Energy Gun 12 | 1 . 1 5 3 . . . . . . 1 . . . 1 . Energy Cannon 6 | . . . . . 1 . . 2 . . 1 . . . . 2 Ballistic Gun 14 | . 3 4 3 4 . . . . . . . . . . . . Ballistic Cannon 2 | . . 1 1 . . . . . . . . . . . . . Launcher 10 | . . 1 2 2 2 2 . 1 . . . . . . . . Special Weapon 1 | . . 1 . . . . . . . . . . . . . . Impact Weapon 8 | . 1 1 5 . 1 . . . . . . . . . . . Slashing Weapon 1 | . . . . 1 . . . . . . . . . . . . Piercing Weapon 3 | . . . . . . . . 2 . . . . . . . 1 Special Melee Weapon 2 | . . . . 1 . . . . . . . . . . 1 . Unidentified Prototypes 15 | . . . 1 3 2 . . 1 . . 7 . . . 1 . Parts Lost 62 | . 4 4 6 13 1 1 2 4 . . . 2 . . 4 21 Power 13 | . 1 1 . 2 1 . 1 1 . . . . . . 1 5 Propulsion 16 | . 2 1 2 5 . . . 1 . . . . . . 1 4 Utility 22 | . . . 2 3 . 1 . 2 . . . 2 . . 1 11 Weapon 11 | . 1 2 2 3 . . 1 . . . . . . . 1 1 Highest Loss Streak 7 | . 3 3 2 3 1 1 2 6 . . . 2 . . 3 7 To Critical Strikes . | . . . . . . . . . . . . . . . . . Average Slot Usage (%) 89 | . 87 87 95 93 95 98 99 91 94 94 92 93 88 90 81 68 Engine 6 | . 14 9 7 6 6 6 11 2 . . . . . . . . Core 1 | . . . . 1 . 5 . 4 5 5 4 . . . . 1 Reactor 2 | . . . . . . . . 2 5 5 5 10 9 9 10 6 Treads 10 | . 15 20 21 16 . . . . . . . . . . . . Leg 3 | . . 7 6 10 . . . . . . . . . . . . Wheel 2 | . 8 . 4 . . . . . . . . . . . . . Flight 9 | . . . . 8 29 26 29 23 21 21 21 21 22 23 17 14 Device 17 | . . 8 10 19 20 20 22 33 42 42 36 30 31 33 30 24 Storage 7 | . 20 14 11 6 . . . . . . . . . . . . Processor 5 | . . . . 1 13 18 17 13 10 10 10 10 9 9 12 11 Hackware 1 | . . . . . 2 . . . . . 2 5 4 4 4 4 Protection 3 | . . . 11 4 7 6 5 . . . . 4 . . . . Energy Gun 3 | . 1 . 10 7 . . . . . . 3 5 4 4 . . Ballistic Gun 7 | . 25 11 5 7 . . . . . . . . . . . . Impact Weapon 1 | . . 4 2 . 1 6 5 . . . . . . . . . Piercing Weapon 1 | . . . . . . . . 4 5 5 5 5 4 4 4 3 Naked Turns . | . . . . . . . . . . . . . . . . . Heaviest Build 67 | 11 67 49 61 62 23 29 34 40 40 41 48 44 42 42 56 59 Greatest Support 80 | 20 40 40 60 80 30 30 36 41 41 43 45 45 52 52 52 64 Greatest Overweight (x) 4 | 3 3 2 4 3 1 . . . . . 1 . . . 1 1 Average Overweight (x) . | 1 1 1 1 . . . . . . . . . . . . . Largest Inventory Capacity 20 | 8 20 20 20 20 5 5 5 5 5 5 5 5 5 5 5 5 Average Capacity 12 | 7 17 20 20 16 5 5 5 5 5 5 5 5 5 5 5 5 Most Carried 20 | 8 19 20 20 20 5 5 5 5 5 5 5 5 5 4 5 5 Average Carried 11 | 5 11 19 18 16 4 4 4 4 5 5 4 5 2 2 4 4 Final Capacity 20 | 8 20 20 20 5 5 5 5 5 5 5 5 5 5 5 5 5 Final Carried 20 | 7 19 20 20 5 5 5 4 5 5 5 5 5 2 4 5 4 Class Distribution -------------------- 34% | Mutant 22% | Scavenger-Mutant 11% | Infiltrator-Ninja 7% | Scout 6% | Generator-Ninja 6% | Hacker-Ninja 6% | Generator-Assassin Dominant Class ---------------- Mutant | -10/Materials Mutant | -10/Mines Scavenger-Mutant | -9/Materials Scavenger-Mutant | -8/Materials Scout | -7/Factory Scout | -6/Factory Scout | -5/Factory Infiltrator-Ninja | -4/Factory Infiltrator-Ninja | -4/Upper Caves Infiltrator-Ninja | -4/Upper Caves Hacker-Ninja | -4/Warlord Hacker-Ninja | -3/Proximity Caves Generator-Ninja | -3/Research Generator-Ninja | -3/DSF Generator-Assassin | -2/Research Generator-Ninja | -1/Access Resources | -11 -10 -10 -9 -8 -7 -6 -5 -4 -4 -4 -4 -3 -3 -3 -2 -1 ----------- Run | Scr Mat Min Mat Mat Fac Fac Fac Fac Upp Upp War Pro Res DSF Res Acc Matter Collected 3038 | 214 239 401 601 541 189 112 66 114 108 18 203 . . . 170 62 Remotely . | . . . . . . . . . . . . . . . . . Salvage Created 3056 | . 397 508 868 729 192 25 39 135 . . . . . . . 163 Parts 172 | . 28 30 48 37 10 . 3 9 . . . . . . . 7 Haulers Intercepted . | . . . . . . . . . . . . . . . . . Recyclers Shooed 1 | . . 1 . . . . . . . . . . . . . . Parts Field Recycled . | . . . . . . . . . . . . . . . . . Retrieved Matter . | . . . . . . . . . . . . . . . . . Parts Self-Destructed 1 | . . . . . . . . . . 1 . . . . . . Prevented 5 | . . . . . . . . . . 5 . . . . . . Kills | -11 -10 -10 -9 -8 -7 -6 -5 -4 -4 -4 -4 -3 -3 -3 -2 -1 ------- Run | Scr Mat Min Mat Mat Fac Fac Fac Fac Upp Upp War Pro Res DSF Res Acc Combat Hostiles Destroyed 79 | . 11 16 24 16 . . 4 6 . . . . . . . 2 Melee 7 | . . 3 1 . . . . 1 . . . . . . . 2 Guns 42 | . 11 2 17 12 . . . . . . . . . . . . Cannons 12 | . . 8 2 . . . . 2 . . . . . . . . AOE 16 | . . 2 3 4 . . 4 3 . . . . . . . . Classes Destroyed 13 | . 4 3 3 1 1 . 1 . . . . . . . . . Worker 1 | . 1 . . . . . . . . . . . . . . . Builder 5 | . 1 . 1 . 3 . . . . . . . . . . . Tunneler 1 | . . 1 . . . . . . . . . . . . . . Recycler 3 | . . 1 . . 2 . . . . . . . . . . . Operator 2 | . . . . . 2 . . . . . . . . . . . Drone 1 | . . . . . . . 1 . . . . . . . . . Watcher 4 | . . . . 2 . 1 . 1 . . . . . . . . Swarmer 25 | . 3 2 6 4 . . 4 6 . . . . . . . . Grunt 40 | . 8 13 9 8 . . . . . . . . . . . 2 Brawler 1 | . . . 1 . . . . . . . . . . . . . Duelist 1 | . . . 1 . . . . . . . . . . . . . Sentry 11 | . . . 7 4 . . . . . . . . . . . . Assembled 1 | . . 1 . . . . . . . . . . . . . . Best Kill Streak 6 | . 4 4 4 5 6 1 4 3 . . . . . . . 2 Combat Bots Only 5 | . 3 4 3 5 . . 4 3 . . . . . . . 2 Max Kills in Single Turn 3 | . 1 1 1 2 3 1 3 2 . . . . . . . 1 Gunslinging . | . . . . . . . . . . . . . . . . . Exploded 2 | . . 1 1 2 . . 2 2 . . . . . . . . Melee 1 | . . 1 1 . . . . 1 . . . . . . . 1 Uniques/NPCs Destroyed . | . . . . . . . . . . . . . . . . . Combat | -11 -10 -10 -9 -8 -7 -6 -5 -4 -4 -4 -4 -3 -3 -3 -2 -1 -------- Run | Scr Mat Min Mat Mat Fac Fac Fac Fac Upp Upp War Pro Res DSF Res Acc Damage Taken 8801 | . 440 804 1356 1554 176 213 182 374 16 . 97 276 . . 356 2957 Core 2292 | . 61 170 114 210 48 104 . 93 . . 43 109 . . 48 1292 Absorbed by Shields . | . . . . . . . . . . . . . . . . . Redirected to Shielding 140 | . . 10 7 41 . 16 26 9 . . . 31 . . . . Core Remaining (%) 73 | 100 . 7 71 61 93 87 100 . . . . 78 . 100 96 19 Volleys Fired 279 | . 40 45 65 63 8 . 4 26 3 3 1 13 1 . 3 4 Largest 2 | . 2 2 2 2 1 . 1 1 1 1 1 1 1 . 1 1 Hottest 100 | . 60 59 96 88 65 . 43 98 98 98 100 40 40 . 40 100 Shots Fired 454 | . 80 70 125 113 8 . 4 26 3 3 1 13 1 . 3 4 Gun 355 | . 80 38 108 112 . . . . . . . 13 1 . 3 . Cannon 83 | . . 30 13 . 5 . . 24 3 3 1 . . . . 4 Launcher 16 | . . 2 4 1 3 . 4 2 . . . . . . . . Special . | . . . . . . . . . . . . . . . . . Kinetic 240 | . 65 68 45 62 . . . . . . . . . . . . Thermal 176 | . 15 . 76 50 5 . . 24 3 3 . . . . . . Explosive 16 | . . 2 4 1 3 . 4 2 . . . . . . . . Electromagnetic . | . . . . . . . . . . . . . . . . . Entropic 22 | . . . . . . . . . . . 1 13 1 . 3 4 Robot Hit Streak 19 | . 12 6 19 17 8 . . 2 . . . . . . . . Robot Miss Streak 3 | . 3 2 2 2 1 . 3 1 . . . . 2 . . . Penetration Max . | . . . . . . . . . . . . . . . . . Secondary Targets 3 | . . . . 3 . . . . . . . . . . . . Max Gunslinging Chain 1 | . . . . 1 . . . . . . . . . . . . Shots Hit Robots 311 | . 57 51 96 87 3 1 . 8 . . . . . . . 8 Core Hits 145 | . 21 19 43 37 9 . 5 6 . . . . . . . 5 Critical Kills 1 | . 1 . . . . . . . . . . . . . . . Critical Parts Destroyed 3 | . 1 2 . . . . . . . . . . . . . . Critical Strikes 9 | . 2 2 2 3 . . . . . . . . . . . . Burn 4 | . . . 1 3 . . . . . . . . . . . . Destroy 3 | . 2 . 1 . . . . . . . . . . . . . Smash 2 | . . 2 . . . . . . . . . . . . . . Melee Attacks 144 | . 3 15 26 13 7 15 . 14 . . 5 . 7 . 1 38 Impact 67 | . 3 15 26 3 2 15 . 3 . . . . . . . . Slashing 10 | . . . . 5 5 . . . . . . . . . . . Piercing 59 | . . . . . . . . 11 . . 5 . 7 . 1 35 Sneak Attacks 3 | . . 1 . 1 . . . . . . . . . . . 1 Combat Hostiles . | . . . . . . . . . . . . . . . . . Follow-up Attacks . | . . . . . . . . . . . . . . . . . Damage Inflicted 7074 | . 503 1073 1730 1558 767 53 381 698 . . . . . . . 311 Guns 2929 | . 503 195 1009 1222 . . . . . . . . . . . . Cannons 685 | . . 428 93 . . . . 164 . . . . . . . . Explosions 2162 | . . 222 228 256 677 . 381 398 . . . . . . . . Melee 1278 | . . 228 380 80 90 53 . 136 . . . . . . . 311 Ramming 20 | . . . 20 . . . . . . . . . . . . . Kinetic 2070 | . 389 623 410 648 . . . . . . . . . . . . Thermal 1747 | . 114 . 692 777 . . . 164 . . . . . . . . Explosive 1959 | . . 222 228 53 677 . 381 398 . . . . . . . . Electromagnetic . | . . . . . . . . . . . . . . . . . Impact 733 | . . 228 380 . . 53 . 72 . . . . . . . . Slashing 170 | . . . . 80 90 . . . . . . . . . . . Piercing 375 | . . . . . . . . 64 . . . . . . . 311 Highest Corruption 11 | . . . 4 . . 1 1 1 1 1 1 . . . . 11 Average Corruption 3 | . . . 4 . . 1 1 1 1 1 1 . . . . 5 Corruption Purged . | . . . . . . . . . . . . . . . . . Corruption Blocked 6 | . . . . . . . . . . . . . . . 6 . Effects 38 | . . . 25 . . . 1 3 1 . 1 . . . . 7 Message Errors 9 | . . . 9 . . . . . . . . . . . . . Matter Fused 6 | . . . 2 . . . . 2 . . 1 . . . . 1 Heat Flow Errors 5 | . . . 3 . . . . . . . . . . . . 2 Energy Discharges 8 | . . . 6 . . . 1 . . . . . . . . 1 Parts Rejected 4 | . . . 2 . . . . . . . . . . . . 2 Data Loss (minor) 1 | . . . . . . . . 1 . . . . . . . . Data Loss (major) 2 | . . . 1 . . . . . . . . . . . . 1 Misfires 2 | . . . 2 . . . . . . . . . . . . . Alerts 1 | . . . . . . . . . 1 . . . . . . . Overload Shots . | . . . . . . . . . . . . . . . . . Overflow Damage 355 | . . 124 29 21 81 18 35 47 . . . . . . . . Projectiles 13 | . . . 6 . . . . 7 . . . . . . . . Explosions 214 | . . 29 8 21 81 . 35 40 . . . . . . . . Melee 128 | . . 95 15 . . 18 . . . . . . . . . . Knockbacks 5 | . . 1 3 . . . . 1 . . . . . . . . Impact 2 | . . . 1 . . . . 1 . . . . . . . . Kinetic 3 | . . 1 2 . . . . . . . . . . . . . Secondary . | . . . . . . . . . . . . . . . . . Self-Inflicted Damage 373 | . . . 44 121 152 . 56 . . . . . . . . . Shots 7 | . . . 2 2 2 . 1 . . . . . . . . . Rammed 2 | . . . 2 . . . . . . . . . . . . . Targets Rammed 2 | . . . 2 . . . . . . . . . . . . . Kicked . | . . . . . . . . . . . . . . . . . Crushed . | . . . . . . . . . . . . . . . . . Highest Temperature 443 | . 76 26 443 66 80 . 9 344 157 153 86 18 . . 2 236 Average Temperature 62 | . 23 12 117 18 35 . 5 110 34 110 25 18 . . 1 88 Received Heat Transfer 2023 | . 180 357 549 729 . 6 27 . 9 . 48 46 . . . 72 Effects 2 | . . . 1 . . . . 1 . . . . . . . . Shutdowns 1 | . . . . . . . . 1 . . . . . . . . Energy Bleed 1 | . . . 1 . . . . . . . . . . . . . Siege Activations . | . . . . . . . . . . . . . . . . . Robots Corrupted . | . . . . . . . . . . . . . . . . . Combat Hostiles . | . . . . . . . . . . . . . . . . . Parts Fried 4 | . . 2 . . . 2 . . . . . . . . . . Impact Corruptions 6 | . . 4 1 . . 1 . . . . . . . . . . Robots Melted . | . . . . . . . . . . . . . . . . . Combat Hostiles . | . . . . . . . . . . . . . . . . . Parts Melted 7 | . . . 5 2 . . . . . . . . . . . . Heat Transferred 4039 | . 275 . 1749 1765 . . . 250 . . . . . . . . Parts Sabotaged . | . . . . . . . . . . . . . . . . . Parts Stolen . | . . . . . . . . . . . . . . . . . Parts Stripped . | . . . . . . . . . . . . . . . . . Power Chain Reactions . | . . . . . . . . . . . . . . . . . Missiles Intercepted . | . . . . . . . . . . . . . . . . . Alert | -11 -10 -10 -9 -8 -7 -6 -5 -4 -4 -4 -4 -3 -3 -3 -2 -1 ------- Run | Scr Mat Min Mat Mat Fac Fac Fac Fac Upp Upp War Pro Res DSF Res Acc Peak Influence 572 | . 257 194 490 490 572 521 424 546 . . . . 15 11 80 569 Initial 237 | . . 1 31 178 218 237 45 207 . . . . . 11 6 17 Average 206 | . 84 82 334 257 391 300 218 369 . . . . 5 11 26 320 Maximum Alert Level 2 | . 1 . 2 2 2 2 2 2 . . . . . . . 2 Low Security (%) 52 | 100 91 100 16 19 . 4 52 . . . . . 100 100 100 36 Level 1 29 | . 8 . 37 77 41 79 34 78 . . . . . . . 19 Level 2 18 | . . . 46 2 58 15 13 21 . . . . . . . 44 Level 3 . | . . . . . . . . . . . . . . . . . Level 4 . | . . . . . . . . . . . . . . . . . Level 5 . | . . . . . . . . . . . . . . . . . High Security . | . . . . . . . . . . . . . . . . . Max Security . | . . . . . . . . . . . . . . . . . Squads Dispatched 21 | . 2 . 4 1 1 1 1 3 . . . . 1 . 1 6 Investigation 1 | . 1 . . . . . . . . . . . . . . . Extermination 3 | . . . . . . 1 . . . . . . . . . 2 Reinforcement 16 | . 1 . 3 1 1 . 1 3 . . . . 1 . 1 4 Assault 1 | . . . 1 . . . . . . . . . . . . . Garrison . | . . . . . . . . . . . . . . . . . Intercept . | . . . . . . . . . . . . . . . . . Searches Triggered 1 | . . . . . . 1 . . . . . . . . . . Construction Impeded . | . . . . . . . . . . . . . . . . . Haulers Reinforced . | . . . . . . . . . . . . . . . . . Active Scanning Responses . | . . . . . . . . . . . . . . . . . Cargo Convoy Interrupts . | . . . . . . . . . . . . . . . . . Stealth | -11 -10 -10 -9 -8 -7 -6 -5 -4 -4 -4 -4 -3 -3 -3 -2 -1 --------- Run | Scr Mat Min Mat Mat Fac Fac Fac Fac Upp Upp War Pro Res DSF Res Acc Distress Signals 27 | . 4 1 5 1 . 2 1 1 . . 1 . . . 6 5 Communications Jammed 40 | . . . . . . . . 3 . . . . . . 17 20 Distress Signals 26 | . . . . . . . . 3 . . . . . . 17 6 Times Spotted 287 | . 29 21 47 23 10 12 12 24 1 . 27 6 . 1 13 61 Peak Tracking Total 21 | . 4 3 6 8 4 9 6 6 1 . 11 5 . 1 5 21 Tactical Retreats 49 | . 2 8 6 . 2 2 3 8 1 . 2 1 . . 4 10 Traps | -11 -10 -10 -9 -8 -7 -6 -5 -4 -4 -4 -4 -3 -3 -3 -2 -1 ------- Run | Scr Mat Min Mat Mat Fac Fac Fac Fac Upp Upp War Pro Res DSF Res Acc Traps Triggered 7 | . 2 . . . 1 1 . 1 . . . . . . 1 1 Indirectly . | . . . . . . . . . . . . . . . . . Trap Hack Attempts . | . . . . . . . . . . . . . . . . . Triggered . | . . . . . . . . . . . . . . . . . Disarmed . | . . . . . . . . . . . . . . . . . Reprogrammed . | . . . . . . . . . . . . . . . . . Reused . | . . . . . . . . . . . . . . . . . Traps Extracted . | . . . . . . . . . . . . . . . . . Installed . | . . . . . . . . . . . . . . . . . Triggered 12 | . . . . . . . . . . 2 9 . . . . 1 Machines | -11 -10 -10 -9 -8 -7 -6 -5 -4 -4 -4 -4 -3 -3 -3 -2 -1 ---------- Run | Scr Mat Min Mat Mat Fac Fac Fac Fac Upp Upp War Pro Res DSF Res Acc Machines Disabled 17 | . . . 1 1 8 . 4 . . 1 1 . . . . 1 Max in Single Turn 4 | . . . 1 1 3 . 4 . . 1 1 . . . . 1 Garrison Access 2 | . . . . . . . . 1 . . . . . . 1 . Machines Sabotaged . | . . . . . . . . . . . . . . . . . Garrisons Compromised 1 | . . . . . . 1 . . . . . . . . . . Overloaded Fab Kills . | . . . . . . . . . . . . . . . . . Hacking | -11 -10 -10 -9 -8 -7 -6 -5 -4 -4 -4 -4 -3 -3 -3 -2 -1 --------- Run | Scr Mat Min Mat Mat Fac Fac Fac Fac Upp Upp War Pro Res DSF Res Acc Machines Accessed 59 | . 7 . 6 5 6 9 2 6 1 2 8 . 1 . 5 1 Terminals 34 | . 7 . 6 4 4 4 1 3 . . . . 1 . 3 1 Fabricators 3 | . . . . . . 2 . . . . . . . . 1 . Repair Stations 2 | . . . . . . 1 . 1 . . . . . . . . Recycling Units 3 | . . . . . 1 1 1 . . . . . . . . . Scanalyzers 1 | . . . . . . 1 . . . . . . . . . . Garrison Access 5 | . . . . 1 1 . . 2 . . . . . . 1 . Total Hacks 120 | . 22 . 13 11 10 20 5 7 1 2 12 . 1 . 13 3 Successful 64 | . 11 . 3 3 6 10 4 4 1 2 12 . 1 . 5 2 Failed 56 | . 11 . 10 8 4 10 1 3 . . . . . . 8 1 Catastrophic 13 | . . . 1 2 1 2 . 1 . . . . . . 5 1 Database Lockouts . | . . . . . . . . . . . . . . . . . Manual 87 | . 21 . 12 10 8 11 3 6 . . 1 . . . 12 3 Terminals 86 | . 22 . 13 10 8 12 2 4 . . . . 1 . 11 3 Fabricators 4 | . . . . . . 3 . . . . . . . . 1 . Repair Stations 3 | . . . . . . 2 . 1 . . . . . . . . Recycling Units 5 | . . . . . 1 1 3 . . . . . . . . . Scanalyzers 2 | . . . . . . 2 . . . . . . . . . . Garrison Access 5 | . . . . 1 1 . . 2 . . . . . . 1 . Terminal Hacks 31 | . 3 . . 1 3 4 . 1 1 2 12 . 1 . 3 . Record 12 | . . . . . . . . . . 1 11 . . . . . Open Door 3 | . . . . . . . . . 1 1 1 . . . . . Open DSF 1 | . . . . . . . . . . . . . 1 . . . Terminal Index 5 | . 1 . . 1 1 . . 1 . . . . . . 1 . Alert Level 3 | . 1 . . . . 2 . . . . . . . . . . Unreport Threat 6 | . 1 . . . 1 2 . . . . . . . . 2 . Hauler Manifests 1 | . . . . . 1 . . . . . . . . . . . Fabricator Hacks 1 | . . . . . . 1 . . . . . . . . . . Network Status 1 | . . . . . . 1 . . . . . . . . . . Repair Station Hacks . | . . . . . . . . . . . . . . . . . Recycling Unit Hacks 2 | . . . . . . . 2 . . . . . . . . . Report Inventory 1 | . . . . . . . 1 . . . . . . . . . Retrieve Components 1 | . . . . . . . 1 . . . . . . . . . Scanalyzer 2 | . . . . . . 2 . . . . . . . . . . Insert Component 1 | . . . . . . 1 . . . . . . . . . . Analyze 1 | . . . . . . 1 . . . . . . . . . . Garrison Access Hacks 1 | . . . . . . . . 1 . . . . . . . . Seal Access 1 | . . . . . . . . 1 . . . . . . . . Unauthorized Hacks 27 | . 8 . 3 2 3 3 2 2 . . . . . . 2 2 Terminals 24 | . 8 . 3 2 2 3 1 1 . . . . . . 2 2 Assimilate 8 | . 3 . 2 . . 2 . . . . . . . . 1 . Botnet 9 | . 4 . . 1 1 . . 1 . . . . . . 1 1 Operators 7 | . 1 . 1 1 1 1 1 . . . . . . . . 1 Fabricators . | . . . . . . . . . . . . . . . . . Repair Stations 1 | . . . . . . . . 1 . . . . . . . . Mechanics 1 | . . . . . . . . 1 . . . . . . . . Recycling Units 2 | . . . . . 1 . 1 . . . . . . . . . Recyclers 2 | . . . . . 1 . 1 . . . . . . . . . Scanalyzers . | . . . . . . . . . . . . . . . . . Garrison Access . | . . . . . . . . . . . . . . . . . Data Cores Recovered . | . . . . . . . . . . . . . . . . . Used . | . . . . . . . . . . . . . . . . . Hacking Detections 39 | . 4 . 6 4 5 9 1 5 . . . . . . 4 1 Full Trace Events . | . . . . . . . . . . . . . . . . . Feedback Events . | . . . . . . . . . . . . . . . . . Feedback Blocked . | . . . . . . . . . . . . . . . . . Robot Schematics Acquired . | . . . . . . . . . . . . . . . . . Robots Built . | . . . . . . . . . . . . . . . . . Authchips . | . . . . . . . . . . . . . . . . . Time . | . . . . . . . . . . . . . . . . . Total Robot Build Rating . | . . . . . . . . . . . . . . . . . Part Schematics Acquired 1 | . . . . . . 1 . . . . . . . . . . Parts Built . | . . . . . . . . . . . . . . . . . Authchips . | . . . . . . . . . . . . . . . . . Time . | . . . . . . . . . . . . . . . . . Total Part Build Rating . | . . . . . . . . . . . . . . . . . Parts Repaired . | . . . . . . . . . . . . . . . . . Time . | . . . . . . . . . . . . . . . . . Parts Recycled . | . . . . . . . . . . . . . . . . . Recycled Matter . | . . . . . . . . . . . . . . . . . Retrieved Matter . | . . . . . . . . . . . . . . . . . Retrieved Components 1 | . . . . . . . 1 . . . . . . . . . Parts Scanalyzed 1 | . . . . . . 1 . . . . . . . . . . Part Schematics Acquired 1 | . . . . . . 1 . . . . . . . . . . Parts Damaged . | . . . . . . . . . . . . . . . . . Bothacking | -11 -10 -10 -9 -8 -7 -6 -5 -4 -4 -4 -4 -3 -3 -3 -2 -1 ------------ Run | Scr Mat Min Mat Mat Fac Fac Fac Fac Upp Upp War Pro Res DSF Res Acc Used RIF Installer . | . . . . . . . . . . . . . . . . . Robots Hacked 3 | . . . . 2 . . . . . . . . . . . 1 Non-combat 3 | . . . . 2 . . . . . . . . . . . 1 Combat . | . . . . . . . . . . . . . . . . . Robot Hacks Applied 3 | . . . . 2 . . . . . . . . . . . 1 parse_system 2 | . . . . 1 . . . . . . . . . . . 1 check_alert 1 | . . . . 1 . . . . . . . . . . . . Relay Couplers Released 1 | . . . . . . . . . . . . . . . 1 . Machine Destruction 1 | . . . . . . . . . . . . . . . 1 . Fabnet Peak Effective % . | . . . . . . . . . . . . . . . . . Robots Rewired . | . . . . . . . . . . . . . . . . . Allies Hacked . | . . . . . . . . . . . . . . . . . Hacks Repelled . | . . . . . . . . . . . . . . . . . Allies | -11 -10 -10 -9 -8 -7 -6 -5 -4 -4 -4 -4 -3 -3 -3 -2 -1 -------- Run | Scr Mat Min Mat Mat Fac Fac Fac Fac Upp Upp War Pro Res DSF Res Acc Total Allies 5 | . 1 . 1 . . 2 . . . . . . . . 1 . Largest Group 1 | . 1 1 1 . . 1 . . . . . . . . 1 . Highest-Rated Group 26 | . 10 10 10 . . 26 . . . . . . . . 10 . Highest-Rated Ally 26 | . 10 10 10 . . 26 . . . . . . . . 10 . Total Orders 3 | . . . 1 . . . 2 . . . . . . . . . STAY 1 | . . . 1 . . . . . . . . . . . . . EXPLORE 2 | . . . . . . . 2 . . . . . . . . . Ally Attacks . | . . . . . . . . . . . . . . . . . Total Damage . | . . . . . . . . . . . . . . . . . Kills . | . . . . . . . . . . . . . . . . . Allies Corrupted 1 | . . 1 . . . . . . . . . . . . . . Allies Melted 2 | . . . . . . . . . . . . . . . 2 . Intel | -11 -10 -10 -9 -8 -7 -6 -5 -4 -4 -4 -4 -3 -3 -3 -2 -1 ------- Run | Scr Mat Min Mat Mat Fac Fac Fac Fac Upp Upp War Pro Res DSF Res Acc Robot Analysis Total . | . . . . . . . . . . . . . . . . . Derelict Logs Recovered 5 | . . 2 . . . . . . 2 1 . . . . . . Drone Launches 2 | . . . . . . . 2 . . . . . . . . . Drone Recoveries . | . . . . . . . . . . . . . . . . . Exploration | -11 -10 -10 -9 -8 -7 -6 -5 -4 -4 -4 -4 -3 -3 -3 -2 -1 ------------- Run | Scr Mat Min Mat Mat Fac Fac Fac Fac Upp Upp War Pro Res DSF Res Acc Turns Passed 9745 | 120 1482 1220 2029 792 322 371 140 541 287 108 444 344 96 17 923 509 Spaces Moved 11257 | 81 624 373 875 536 880 946 418 1284 772 344 1050 546 188 58 1296 986 Core 58 | 43 . . . . . . . . . . . . . . . 15 Treads 1128 | . 330 285 398 115 . . . . . . . . . . . . Legs 224 | . . 88 88 48 . . . . . . . . . . . . Wheels 721 | 38 294 . 389 . . . . . . . . . . . . . Hover . | . . . . . . . . . . . . . . . . . Flight 9126 | . . . . 373 880 946 418 1284 772 344 1050 546 188 58 1296 971 Fastest Speed 23 | 50 80 240 135 26 23 27 25 24 28 28 29 29 26 26 26 36 Average Speed 63 | 129 184 244 180 81 26 27 25 26 28 28 30 29 26 26 63 37 Slowest Speed 400 | 200 400 260 240 275 96 27 25 28 28 29 105 29 29 26 119 125 Overloaded Moves 28 | . . . . . 28 . . . . . . . . . . . Propulsion Burnouts . | . . . . . . . . . . . . . . . . . Robots Hopped 23 | . . . . . . 2 2 3 . . . . . . 2 14 Cave-ins Triggered . | . . . . . . . . . . . . . . . . . Exploration Rate (%) 50 | 4 71 82 60 48 27 31 14 34 79 67 95 70 6 88 44 36 Regions Visited 16 Branch Regions 5 Pre-discovered Areas 1 | . . 1 . . . . . . . . . . . . . . Known Exits Taken 11 | . . . . 1 1 1 1 1 1 1 1 1 1 . 1 . Unknown Exits Taken 4 | 1 1 1 1 . . . . . . . . . . . . . Scrap Searched 10 | . . 1 . . . . . . 5 1 . 3 . . . . Spaces Dug 109 | . 3 . 3 3 6 14 . 25 3 2 3 13 4 . 3 27 Terrain Destroyed 327 | . 3 21 28 42 47 14 61 55 3 2 3 13 5 . 3 27 Melee 64 | . 3 . 3 3 5 14 . 10 . . 1 . 4 . . 21 Projectile 56 | . . 4 2 . 1 . . 19 3 2 2 13 1 . 3 6 AOE 207 | . . 17 23 39 41 . 61 26 . . . . . . . . Terrain Rammed . | . . . . . . . . . . . . . . . . . Walls Destroyed . | . . . . . . . . . . . . . . . . . Machines Disabled . | . . . . . . . . . . . . . . . . . Actions | -11 -10 -10 -9 -8 -7 -6 -5 -4 -4 -4 -4 -3 -3 -3 -2 -1 --------- Run | Scr Mat Min Mat Mat Fac Fac Fac Fac Upp Upp War Pro Res DSF Res Acc Total 13119 | 95 884 587 1156 763 948 1030 446 1431 839 351 1166 717 218 59 1387 1042 Wait 1005 | . 182 133 112 56 12 49 14 69 63 . 78 159 20 . 55 3 Move 11195 | 80 623 372 874 535 879 941 413 1277 771 343 1049 545 187 57 1291 958 Hop 22 | . . . . . . 2 2 3 . . . . . . 2 13 Pick Up 125 | 10 22 4 21 23 9 7 4 10 . 1 4 . . 2 4 4 Fast Attach 83 | 2 . 2 4 14 14 2 2 10 . . 12 . . . 15 6 Attach 59 | 3 7 2 12 13 1 4 2 3 . . 1 . 3 . 2 6 Detach 3 | . . . . . . 1 . . . . . . . . . 2 Swap 67 | . 2 12 22 16 2 3 1 5 1 2 . . . . . 1 Drop 133 | . 5 2 18 30 16 6 4 14 1 2 16 . . . 14 5 Fire 279 | . 40 45 65 63 8 . 4 26 3 3 1 13 1 . 3 4 Melee 144 | . 3 15 26 13 7 15 . 14 . . 5 . 7 . 1 38 Ram 1 | . . . 1 . . . . . . . . . . . . . Kick . | . . . . . . . . . . . . . . . . . Crush 1 | . . . 1 . . . . . . . . . . . . . Escape Stasis 2 | . . . . . . . . . . . . . . . . 2 Rewire . | . . . . . . . . . . . . . . . . . Trap . | . . . . . . . . . . . . . . . . . Miscellaneous . | . . . . . . . . . . . . . . . . . Route ------- -11/Scrapyard -10/Materials (discovered 4 exits: *Mat x2 / [*Min x2]) -10/Mines -9/Materials (discovered 2 exits: *Mat / [*Min]) -8/Materials -7/Factory (discovered 2 exits: *Fac / [*Low]) -6/Factory (discovered 2 exits: *Fac x2) -5/Factory -4/Factory (discovered 2 exits: *Upp / *Ext) -4/Upper Caves -4/Upper Caves (discovered 2 exits: *Res / *War) -4/Warlord -3/Proximity Caves -3/Research (discovered 2 exits: Res / DSF) -3/DSF -2/Research (discovered 3 exits: *Acc x2 / *Qua) -1/Access To Epsilon Eridani History --------- Turn | Location | Event 26 | -11/Scrapyard | Discovered new exit (range 15) 121 | -11/Scrapyard | Entered Materials 250 | -10/Materials | Discovered new exit (range 8) 314 | -10/Materials | Build established: Mutant 534 | -10/Materials | Discovered new exit (range 16) 636 | -10/Materials | Lost 3 parts (1p2n) 737 | -10/Materials | Discovered new exit (range 8) 966 | -10/Materials | Discovered new exit (range 16) 1603 | -10/Materials | Entered Mines 1603 | -10/Mines | Accompanied by 1 ally 1655 | -10/Mines | A weapon hastily lodged in a ceiling crevice suddenly fell to the ground 1941 | -10/Mines | Excavation squad dispatched 1941 | -10/Mines | A large section of the Mines collapsed 2191 | -10/Mines | Excavation squad dispatched 2441 | -10/Mines | Excavation squad dispatched 2465 | -10/Mines | Core integrity fell below 50% 2491 | -10/Mines | Core integrity fell below 20% 2515 | -10/Mines | Lost 3 parts (1p1n1w) 2691 | -10/Mines | Excavation squad dispatched 2694 | -10/Mines | Learned Materials stockpile data 2720 | -10/Mines | Learned location of Zion (-7) 2807 | -10/Mines | Discovered new exit (range 5) 2823 | -10/Mines | Entered Materials 2823 | -9/Materials | Evolved 2 slots: Propulsion x1, Utility x1 3340 | -9/Materials | Discovered new exit (range 15) 3624 | -9/Materials | Build established: Scavenger-Mutant 3925 | -9/Materials | Discovered new exit (range 8) 4823 | -9/Materials | First assault squad dispatched 4852 | -9/Materials | Entered another Materials area 4852 | -8/Materials | Evolved 2 slots: Propulsion x1, Utility x1 5607 | -8/Materials | Discovered new exit (range 13) 5643 | -8/Materials | Identified exit to Factory 5644 | -8/Materials | Entered Factory 5644 | -7/Factory | Evolved 2 slots: Utility x2 5664 | -7/Factory | Lost 3 parts (3w) 5734 | -7/Factory | Discovered new exit (range 3) 5908 | -7/Factory | Discovered new exit (range 15) 5914 | -7/Factory | Identified exit to Factory 5966 | -7/Factory | Entered another Factory area 5966 | -6/Factory | Evolved 2 slots: Power x1, Utility x1 6214 | -6/Factory | Build established: Scout 6284 | -6/Factory | Discovered new exit (range 20) 6316 | -6/Factory | Search patrols dispatched 6317 | -6/Factory | Discovered new exit (range 22) 6335 | -6/Factory | Identified exit to Factory 6337 | -6/Factory | Entered another Factory area 6337 | -5/Factory | Evolved 2 slots: Propulsion x1, Utility x1 6458 | -5/Factory | Discovered new exit (range 8) 6460 | -5/Factory | Identified exit to Factory 6477 | -5/Factory | Entered another Factory area 6477 | -4/Factory | Evolved 2 slots: Utility x2 6538 | -4/Factory | Lost 6 parts (2p1n2u1w) 6578 | -4/Factory | Spotted B-86 Titan 6799 | -4/Factory | Discovered new exit (range 7) 6801 | -4/Factory | Identified exit to Extension 7013 | -4/Factory | Discovered new exit (range 10) 7018 | -4/Factory | Identified exit to Upper Caves 7018 | -4/Factory | Entered Upper Caves 7054 | -4/Upper Caves | Learned Research garrison access intel 7065 | -4/Upper Caves | Spotted B-86 Titan 7165 | -4/Upper Caves | Build established: Infiltrator-Ninja 7240 | -4/Upper Caves | Identified exit to Upper Caves 7305 | -4/Upper Caves | Entered another Upper Caves area 7314 | -4/Upper Caves | Found Alien Artifact 7334 | -4/Upper Caves | Discovered new exit (range 7) 7336 | -4/Upper Caves | Identified exit to Research 7372 | -4/Upper Caves | Learned location of 1 exit from Research 7411 | -4/Upper Caves | Discovered new exit (range 6) 7413 | -4/Upper Caves | Identified exit to Warlord 7413 | -4/Upper Caves | Entered Warlord 7438 | -4/Warlord | Discovered new exit (range 15) 7451 | -4/Warlord | System corruption cleaned by Quarantine Array 7487 | -4/Warlord | Met Warlord 7512 | -4/Warlord | Warlord's base attacked by MAIN.C 7524 | -4/Warlord | Found Prototype Energy Cannon 7524 | -4/Warlord | Identified Vortex Driver 7541 | -4/Warlord | Found Vortex Driver 7548 | -4/Warlord | Found Prototype Energy Gun 7548 | -4/Warlord | Identified Vortex Rifle 7623 | -4/Warlord | Found Prototype Reactor 7623 | -4/Warlord | Identified Vortex Chain Reactor 7630 | -4/Warlord | Found Prototype Hackware 7630 | -4/Warlord | Identified Ghost Barrier 7633 | -4/Warlord | Found Prototype Processor 7686 | -4/Warlord | Found Prototype Device 7686 | -4/Warlord | Identified Minesniffer Drone Bay 7688 | -4/Warlord | Identified Spectral Analyzer 7719 | -4/Warlord | Warlord forces counterattacked 7812 | -4/Warlord | Spotted Executioner 7812 | -4/Warlord | Spotted Executioner 7857 | -4/Warlord | Identified exit to Proximity Caves 7857 | -4/Warlord | Entered Proximity Caves 7924 | -3/Proximity Caves | Build established: Hacker-Ninja 7999 | -3/Proximity Caves | Spotted B-86 Titan 8194 | -3/Proximity Caves | Discovered exit to Research (range 20) 8201 | -3/Proximity Caves | Entered Research 8201 | -3/Research | Evolved 2 slots: Power x1, Propulsion x1 8202 | -3/Research | Identified exit to Research 8203 | -3/Research | Loaded intel: 4 garrison access locations 8291 | -3/Research | Identified exit to DSF 8297 | -3/Research | Entered DSF 8308 | -3/DSF | Discovered exit to Research (range 18) 8314 | -3/DSF | Additional patrols routed to DSF 8314 | -3/DSF | Entered Research 8314 | -2/Research | Warlord forces began assault on 0b10 8314 | -2/Research | Evolved 2 slots: Utility x2 8342 | -2/Research | Spotted B-90 Cyclops 8413 | -2/Research | Found Prototype Processor 8413 | -2/Research | Identified Exp. Core Analyzer 8424 | -2/Research | Research machine network offline 8439 | -2/Research | Lost 3 parts (1p1u1w) 8543 | -2/Research | Met up with Warlord 8572 | -2/Research | Spotted Striker 8574 | -2/Research | Spotted Striker 8637 | -2/Research | Discovered new exit (range 16) 8664 | -2/Research | Identified exit to Quarantine 8685 | -2/Research | Spotted Executioner 8686 | -2/Research | Spotted Striker 8748 | -2/Research | Borebot progress halted 8788 | -2/Research | Build established: Generator-Assassin 8837 | -2/Research | Borebot progress halted 8880 | -2/Research | Borebot progress halted 9173 | -2/Research | Discovered new exit (range 17) 9229 | -2/Research | Spotted Striker 9230 | -2/Research | Spotted Striker 9230 | -2/Research | Spotted Striker 9235 | -2/Research | Discovered new exit (range 15) 9236 | -2/Research | Identified exit to Access 9237 | -2/Research | Entered Access 9237 | -1/Access | Evolved 2 slots: Propulsion x2 9645 | -1/Access | Found Enh. Force Lance 9651 | -1/Access | Lost 3 parts (3u) 9682 | -1/Access | System corruption reached 10% 9714 | -1/Access | Lost 7 parts (1p2n4u) 9730 | -1/Access | Spotted B-99 Colossus 9733 | -1/Access | Core integrity fell below 50% 9735 | -1/Access | Spotted B-99 Colossus 9740 | -1/Access | Discovered new exit (range 11) 9743 | -1/Access | Core integrity fell below 20% 9746 | *** | Escaped! Last Messages --------------- 09736_ Knocked back. 09736_ Slug penetrates Reinforced Barrier. 09736_ Penetrated by Slug. 09736_ Slug penetrates Sealed Heavy Doors. 09736_ Slug penetrates Wall. 09737_ ALERT: Rogue bot located, Programmers report to Access Zone 7G. 09737_ Penetrated by Slug. 09738_ Adv. Signal Interpreter destroyed. 09740_ Vortex penetrates Reinforced Barrier. 09740_ Main Access Shell breached. 09740_ EXIT=FOUND 09740_ R-10 Processor collects Imp. Antigrav System. 09740_ Slug penetrates Wall. 09741_ U-05 Engineer builds a Wall. 09741_ Penetrated by Slug. 09741_ Vortex Driver destroyed. 09741_ Penetrated by Slug. 09745_ Spectral Analyzer destroyed. 09746_ System corrupted: Energy discharge (-10). [Achievement: Epsilon Run] Map ----- +----------------------------------------------------+ | ?????????????????????????????????????????????????? | | ?????????????????????????????????????????????????? | | ?????????????????????????????????????????????????? | | ?????????????????????????????????????????????????? | | ?????????????????????????????????????????????????? | | ?????????????????????????????????????????????????? | | ?????????????????????????????????????????????????? | | ?????????????????????????????????????????????????? | | ?????????????????????????????????????????????????? | | ?????????????????????????????????????????????????? | | ?????????????????????????????????????????????????? | | ?????????????????????????????????????????????????? | | ?????????????????????????????????????????????????? | | ?????????????????????????????????????????????????? | | ????????????????????????????????????????????? ??? | | ????????????????????????????????????????????? ??? | | ????????????????????????????????????????????? ??? | | ????????????????????????????????????????????? ??? | | ????????????????????????????????????????????? ??? | | ????????????????????????????????????????????# #?? | | ????????????????????????????""""???????????? ?? | | ???????????????????????????? #???????????? ?? | | ???????????????????????????? #???????????? ?? | | ???????????????????????"""""" #???????????? ?? | | ???????????????????????" " #????????????# #?? | | ???????????????????????" @" " #????????????# #?? | | ??"""??????????????????" "" " #????????????# #?? | | ???Y"??????????????????" s #????????????# #?" | | ??"""???????????????# """"""p #????????????# #"" | | ????????????????????# s##???????????# #?" | | ????????????????????#"""""""""";##?????##???# #?? | | ??????????????????????????????"# ##?## # ## #?? | | ??????????????????????????????"# p## #?? | | ????????????????????#""""""""""% " #?? | | ????????????????????# #### % % #?? | | ????????????????????# #??# ! * ### | | ????????????????????# #??# [ | | ????????????????????# #??# !=! | | ????????????????????# #??# ] ### | | ????????????????????# #??# #?? | | ????????????????????# #??# # #?? | | ????????????????????#### ####??#### ## #?? | | ???????????????????????# ??????????####### #?? | | ???????????????????????# ????????????????# #? | | ???????????????????????/ ?????????????????# #? | | ?????????????????????? # ?????????????????# # | | ????????????????????? # ?????????????????# # | | ????????????????????? ?# ??????????????????#^ ### | | ???????????????????? ??# ??????????????????# #?? | | ???????????????????##??# ??????????????????# #?? | +----------------------------------------------------+ Best States ------------- Heat Dissipation 74 Energy Generation 77 Energy Capacity 600 Matter Stores 300 Matter Capacity 300 Sight Range 24 Robot Scan Range 16 Terrain Scan Range 20 Terrain Scan Density 85 ECM Strength 1 Jamming Range 16 Cloak Strength 6 Power Amplification 30 Additional Mass Support 9 Armor Coverage 225 Resistance: TH 10 Core Shielding 20 Propulsion Shielding 33 Utility Shielding 33 Phase Shifting 15 Evasion (%) 77 Melee Accuracy 6 Core Analysis 8 Recoil Reduction 4 Defensive Hacking 20 Authchip Count 2 Item Schematics ----------------- Drone Bay | -6/Factory | Scanalyzed Robot Schematics ------------------ None Fabricated ------------ Nothing Alien Tech Used ----------------- None Achievements -------------- A Powerful Ally? All-out Warlord Backstab Can't Catch Me Charge!!! Close Call Dodgeball, But With Guns Epsilon Run I Spy I'm Back, Baby! Knowing Is Half The Battle Librarian More Power To You Part-time Excavator Respectable Loadout Rockin' Loadout Serviceable Loadout Significant Disruption Challenges ------------ None Game ------ Seed HelicalNuclearCloak Manual? 0 Play Time 03:25:21 Cumulative 23.1 hours Start 2022.10.27 @ 15:43:47 End 2022.10.28 @ 00:46:55 Sessions 5 Manual Loads 0 Difficulty Rogue Special Mode None Game No. 2 Rogue 2 Adventurer 0 Explorer 0 Win Type 0 Total 1 Types 1/0/0/0/0/0/0/0/0 Lore% 6 Gallery% 20 Achievement% 26 Wizard Run 0 Options --------- ASCII 0 Keyboard 0 Movement Mouse Keybinds 0 Fullscreen 2 Font 16/SmallcapsGlow Map View 75x55 Tactical HUD 1 Map Filters NONE Filters NONE Steam 1 RUN: 8a29c21a-e2dc-4048-a920-aaf263489228